fUSD/lending_fUSD_20250818
["ID","MTS","AMOUNT","RATE_DAILY","PERIOD"]
[380038071,1755497432393,-518.11592461,0.00010973,2]
[380038073,1755497432402,-172.63172576,0.00010973,2]
[380038075,1755497432412,-500.0,0.00010973,2]
[380038077,1755497432423,-500.0,0.00010973,2]
[380038079,1755497432432,-500.0,0.00010973,2]
[380038081,1755497432441,-500.0,0.00010973,2]
[380038083,1755497432451,-500.0,0.00010973,2]
[380038085,1755497432461,-500.0,0.00010973,2]
[380038087,1755497432471,-500.0,0.00010973,2]
[380038089,1755497432480,-500.80732442,0.00010973,2]
[380038091,1755497432489,-500.0,0.00010973,2]
[380038093,1755497432498,-500.0,0.00010973,2]
[380038095,1755497432507,-500.0,0.00010973,2]
[380038097,1755497432516,-500.0,0.00010973,2]
[380038099,1755497432526,-151.31924293,0.00010989,2]
[380038100,1755497432535,-500.0,0.00010989,2]
[380038102,1755497432544,-395.08697101,0.00010993,2]
[380038104,1755497432553,-200.0,0.00010993,2]
[380038106,1755497432563,-500.0,0.00010993,2]
[380038108,1755497432572,-209.87147555,0.00010993,2]
[380038110,1755497432581,-151.0,0.00010993,2]
[380038111,1755497432591,-11106.0696048,0.00010996,2]
[380038112,1755497432608,-1000.0,0.00010999,2]
[380038113,1755497432620,-1000.0,0.00010999,2]
[380038114,1755497432630,-2000.0,0.00010999,2]
[380038115,1755497432640,-2000.0,0.00010999,2]
[380038116,1755497432650,-8883.04697746,0.00010999,2]
[380038117,1755497432694,-899.35800759,0.00010999,2]
[380038118,1755497432726,-566.91452001,0.00010999,2]
[380038127,1755497438451,-9175.64648969,0.00010999,2]
[380038129,1755497438511,-14218.2290838,0.00010999,2]
[380038130,1755497438521,-150.0,0.00010999,2]
[380038131,1755497438531,-31319.67134343,0.00010999,2]
[380038132,1755497438541,-1000.0,0.00010999,2]
[380038133,1755497438555,-1000.0,0.00010999,2]
[380038134,1755497438568,-7119.2224204,0.00010999,2]
[380038135,1755497438578,-2327.88,0.00010999,2]
[380038136,1755497438588,-2327.88,0.00010999,2]
[380038137,1755497438600,-2327.88,0.00010999,2]
[380038138,1755497438610,-2327.88,0.00010999,2]
[380038139,1755497438619,-2327.88,0.00010999,2]
[380038140,1755497438629,-2327.88,0.00010999,2]
[380038141,1755497438639,-2327.88,0.00010999,2]
[380038142,1755497438650,-2327.88,0.00010999,2]
[380038143,1755497438661,-2327.88,0.00010999,2]
[380038144,1755497438670,-2327.88,0.00010999,2]
[380038145,1755497438680,-2327.88,0.00010999,2]
[380038146,1755497438690,-2327.88,0.00010999,2]
[380038147,1755497438702,-2327.88,0.00010999,2]
[380038148,1755497438717,-2327.88,0.00010999,2]
[380038149,1755497438726,-2327.88,0.00010999,2]
[380038150,1755497438736,-2327.88,0.00010999,2]
[380038151,1755497438745,-2327.88,0.00010999,2]
[380038152,1755497438755,-2327.88,0.00010999,2]
[380038153,1755497438764,-2327.88,0.00010999,2]
[380038154,1755497438775,-2327.88,0.00010999,2]
[380038155,1755497438784,-2327.88,0.00010999,2]
[380038157,1755497438793,-2327.88,0.00010999,2]
[380038159,1755497438803,-2327.88,0.00010999,2]
[380038161,1755497438812,-2328.09536992,0.00010999,2]
[380038163,1755497438822,-9809872.92062592,0.00011,2]
[380038164,1755497438832,-21000.93,0.00011,2]
[380038166,1755497438841,-250.0,0.00011,2]
[380038168,1755497438850,-250.0,0.00011,2]
[380038170,1755497438859,-250.0,0.00011,2]
[380038172,1755497438868,-250.0,0.00011,2]
[380038174,1755497438878,-250.0,0.00011,2]
[380038176,1755497438887,-250.0,0.00011,2]
[380038178,1755497438896,-250.0,0.00011,2]
[380038180,1755497438906,-250.0,0.00011,2]
[380038182,1755497438915,-250.0,0.00011,2]
[380038184,1755497438924,-250.0,0.00011,2]
[380038186,1755497438934,-250.0,0.00011,2]
[380038187,1755497438943,-250.0,0.00011,2]
[380038188,1755497438953,-250.0,0.00011,2]
[380038189,1755497438964,-250.0,0.00011,2]
[380038190,1755497438974,-250.0,0.00011,2]
[380038191,1755497438983,-250.0,0.00011,2]
[380038192,1755497439188,-250.0,0.00011,2]
[380038193,1755497439211,-250.0,0.00011,2]
[380038194,1755497439220,-250.0,0.00011,2]
[380038195,1755497439229,-250.0,0.00011,2]
[380038196,1755497439239,-250.0,0.00011,2]
[380038197,1755497439248,-250.0,0.00011,2]
[380038198,1755497439257,-250.0,0.00011,2]
[380038199,1755497439267,-250.0,0.00011,2]
[380038200,1755497439278,-250.0,0.00011,2]
[380038201,1755497439287,-250.0,0.00011,2]
[380038202,1755497439296,-250.0,0.00011,2]
[380038203,1755497439305,-250.0,0.00011,2]
[380038204,1755497439315,-250.0,0.00011,2]
[380038205,1755497439324,-250.0,0.00011,2]
[380038206,1755497439334,-162.6,0.00011,2]
[380038207,1755497439343,-448330.91,0.00011,2]
[380038208,1755497439353,-458680.53943781,0.00011,2]
[380038209,1755497439362,-681.08989,0.00011,2]
[380038210,1755497439374,-150.99,0.00011,2]
[380038211,1755497439387,-9999.99,0.00011,2]
[380038212,1755497439398,-9999.99,0.00011,2]
[380038213,1755497439408,-999.99,0.00011,2]
[380038214,1755497439419,-151.0,0.00011,2]
[380038215,1755497439431,-151.0,0.00011,2]
[380038216,1755497439440,-289.29330142,0.00011,2]
[380038217,1755497439450,-798.49,0.00011001,2]
[380038218,1755497439462,-150.99,0.00011003,2]
[380038219,1755497439473,-348.39,0.00011003,2]
[380038220,1755497439482,-6877.4,0.00011003,2]
[380038221,1755497439491,-3603.75,0.00011003,2]
[380038222,1755497439501,-300.0,0.00011038,2]
[380038223,1755497439510,-1596.83,0.00011052,2]
[380038224,1755497439520,-944.69,0.00011052,2]
[380038225,1755497439529,-150.0,0.00011088,2]
[380038226,1755497439539,-980.94878469,0.00011088,2]
[380038227,1755497439549,-1250.22884323,0.00011088,2]
[380038228,1755497439558,-1519.50890177,0.00011088,2]
[380038229,1755497439568,-1788.78896031,0.00011088,2]
[380038230,1755497439578,-2058.06901885,0.00011088,2]
[380038231,1755497439587,-2327.3490774,0.00011089,2]
[380038232,1755497439597,-2596.62913594,0.00011089,2]
[380038233,1755497439606,-2865.90919448,0.00011089,2]
[380038234,1755497439616,-3135.18925301,0.00011089,2]
[380038235,1755497439625,-613426.33411908,0.00011099,2]
[380038236,1755497439635,-25590.55276669,0.00011099,2]
[380038237,1755497439645,-25590.55276664,0.00011099,2]
[380038238,1755497439654,-25590.55276664,0.00011099,2]
[380038239,1755497439664,-25590.55276664,0.00011099,2]
[380038240,1755497439674,-25590.55276664,0.00011099,2]
[380038241,1755497439683,-25590.55276664,0.00011099,2]
[380038242,1755497439692,-25590.55276664,0.00011099,2]
[380038243,1755497439702,-25590.55276664,0.00011099,2]
[380038244,1755497439711,-25590.55276664,0.00011099,2]
[380038245,1755497439720,-25590.55276664,0.00011099,2]
[380038246,1755497439729,-798.63,0.000111,2]
[380038247,1755497439739,-1000.0,0.0001112,2]
[380038249,1755497439748,-170.54,0.00011143,2]
[380038251,1755497439758,-850.58,0.00011197,2]
[380038253,1755497439768,-300.0,0.00011222,2]
[380038255,1755497439778,-160.0,0.00011222,2]
[380038257,1755497439788,-187.78006525,0.00011222,2]
[380038258,1755497439797,-163.80973559,0.00011222,2]
[380038259,1755497439806,-646.65982734,0.00011222,2]
[380038260,1755497439816,-151.0,0.00011222,2]
[380038261,1755497439829,-248.71531821,0.00011222,2]
[380038262,1755497439838,-151.0,0.00011222,2]
[380038263,1755497439848,-246.52,0.00011271,2]
[380038264,1755497439857,-1000.0,0.00011289,2]
[380038265,1755497439866,-150.0,0.00011339,4]
[380038266,1755497439874,-300.0,0.00011339,2]
[380038267,1755497439884,-250.0,0.00011339,2]
[380038268,1755497439893,-200.0,0.00011378,2]
[380038269,1755497439903,-150.0,0.000114,2]
[380038270,1755497439918,-539.0,0.000114,2]
[380038271,1755497439928,-400.0,0.00011425,2]
[380038272,1755497439937,-4923.41751996,0.0001146,2]
[380038273,1755497439946,-825.36416327,0.00011476,2]
[380038274,1755497439955,-1000.0,0.000115,2]
[380038275,1755497439965,-2751.0,0.00011507,2]
[380038276,1755497439974,-1000.0,0.00011519,2]
[380038277,1755497439983,-1000.0,0.00011521,2]
[380038278,1755497439993,-1000.0,0.00011521,2]
[380038279,1755497440002,-1000.0,0.00011521,2]
[380038280,1755497440012,-1000.67120204,0.00011521,2]
[380038281,1755497440022,-1000.0,0.00011521,2]
[380038282,1755497440032,-1000.0,0.00011521,2]
[380038283,1755497440041,-1000.0,0.00011521,2]
[380038284,1755497440051,-1000.0,0.00011521,2]
[380038285,1755497440060,-932.52438624,0.00011521,2]
[380038286,1755497440070,-1000.0,0.00011521,2]
[380038287,1755497440079,-500.0,0.00011521,2]
[380038288,1755497440088,-1000.0,0.00011521,2]
[380038289,1755497440098,-294.91110892,0.00011521,2]
[380038290,1755497440107,-1000.0,0.00011521,2]
[380038291,1755497440117,-1000.0,0.00011521,2]
[380038292,1755497440126,-1000.0,0.00011521,2]
[380038293,1755497440135,-1000.0,0.00011521,2]
[380038294,1755497440144,-1000.0,0.00011521,2]
[380038295,1755497440154,-151.0,0.00011541,2]
[380038296,1755497440163,-4226.0,0.00011588,2]
[380038297,1755497440172,-364.8173656,0.00011596,2]
[380038298,1755497440182,-255.0,0.00011596,2]
[380038299,1755497440191,-255.0,0.00011596,2]
[380038300,1755497440200,-341.24051972,0.00011596,2]
[380038301,1755497440210,-157.387,0.00011652,2]
[380038302,1755497440219,-2029.0,0.00011652,2]
[380038303,1755497440228,-1255.476,0.00011652,2]
[380038304,1755497440238,-991.88,0.00011652,2]
[380038305,1755497440247,-843.78711038,0.00011663,2]
[380038306,1755497440256,-212.00699823,0.00011663,2]
[380038307,1755497440266,-160.0,0.00011663,2]
[380038308,1755497440276,-458.40919931,0.00011663,2]
[380038309,1755497440286,-1000.0,0.000117,2]
[380038310,1755497440295,-150.0,0.000117,2]
[380038311,1755497440305,-600.789,0.00011753,2]
[380038312,1755497440315,-1323.375,0.00011753,2]
[380038313,1755497440324,-1656.0,0.00011753,2]
[380038314,1755497440333,-574.962,0.00011753,2]
[380038315,1755497440342,-151.0,0.0001177,2]
[380038316,1755497440351,-151.0,0.0001177,2]
[380038317,1755497440360,-1173.036,0.0001178,2]
[380038318,1755497440370,-894.807,0.0001178,2]
[380038319,1755497440380,-2235.0,0.0001178,2]
[380038320,1755497440394,-4151.0,0.0001178,2]
[380038321,1755497440403,-6090.0,0.0001178,2]
[380038322,1755497440412,-717.0,0.0001178,2]
[380038323,1755497440422,-1000.0,0.00011844,2]
[380038324,1755497440433,-1000.0,0.000119,2]
[380038325,1755497440442,-1000.0,0.00011902,2]
[380038326,1755497440452,-150.0,0.0001193,2]
[380038327,1755497440461,-255.0,0.00011945,2]
[380038328,1755497440472,-1596.98,0.0001196,2]
[380038329,1755497440483,-1680.0,0.00011989,2]
[380038330,1755497440492,-300.0,0.0001199,2]
[380038331,1755497440501,-170.54,0.00011993,2]
[380038332,1755497440510,-200.0,0.00012,2]
[380038333,1755497440520,-1869.43,0.00012055,2]
[380038334,1755497440530,-250.0,0.0001206,2]
[380038335,1755497440540,-204.0,0.0001206,2]
[380038336,1755497440549,-251.0,0.0001206,2]
[380038337,1755497440559,-200.0,0.0001206,2]
[380038338,1755497440568,-200.0,0.0001206,2]
[380038339,1755497440577,-195.589,0.0001206,2]
[380038340,1755497440587,-178.482,0.0001206,2]
[380038341,1755497440596,-203.243,0.0001206,2]
[380038342,1755497440605,-201.232,0.0001206,2]
[380038343,1755497440614,-250.0,0.0001206,2]
[380038344,1755497440624,-296.394,0.0001206,2]
[380038345,1755497440633,-250.0,0.0001206,2]
[380038346,1755497440642,-245.888,0.0001206,2]
[380038347,1755497440651,-186.31,0.0001206,2]
[380038348,1755497440660,-206.999,0.0001206,2]
[380038349,1755497440669,-204.955,0.0001206,2]
[380038350,1755497440679,-159.915,0.0001206,2]
[380038351,1755497440688,-250.0,0.0001206,2]
[380038352,1755497440697,-154.0,0.0001206,2]
[380038353,1755497440706,-209.961,0.0001206,2]
[380038354,1755497440715,-1500.0,0.00012068,2]
[380038355,1755497440725,-1000.80308435,0.00012068,2]
[380038356,1755497440734,-1500.0,0.00012068,2]
[380038357,1755497440743,-1500.0,0.00012068,2]
[380038358,1755497440752,-1500.0,0.00012068,2]
[380038359,1755497440761,-1001.32047253,0.00012068,2]
[380038360,1755497440771,-1500.0,0.00012068,2]
[380038361,1755497440781,-1500.0,0.00012068,2]
[380038362,1755497440790,-648.45802481,0.00012068,2]
[380038363,1755497440799,-993.97629918,0.00012068,2]
[380038364,1755497440809,-1500.0,0.00012068,2]
[380038365,1755497440819,-1500.0,0.00012068,2]
[380038366,1755497440828,-1500.0,0.00012068,2]
[380038367,1755497440837,-1500.0,0.00012068,2]
[380038368,1755497440848,-151.0,0.00012089,2]
[380038369,1755497440860,-192.76369065,0.0001215,2]
[380038370,1755497440873,-152.0,0.00012235,3]
[380038371,1755497440882,-448330.91,0.000123,2]
[380038372,1755497440892,-1000.0,0.000123,2]
[380038373,1755497440901,-151.0,0.00012318,2]
[380038374,1755497440910,-151.0,0.00012318,2]
[380038375,1755497440920,-461.12991723,0.00012348,2]
[380038376,1755497440930,-150.0,0.00012422,2]
[380038377,1755497440939,-850.58,0.00012441,2]
[380038378,1755497440948,-150.0,0.00012445,2]
[380038379,1755497440958,-152.0,0.00012456,4]
[380038380,1755497440968,-150.0,0.00012459,2]
[380038381,1755497440977,-292.89356873,0.00012488,2]
[380038382,1755497440986,-1831.0,0.000125,2]
[380038383,1755497440996,-246.52,0.00012524,2]
[380038384,1755497441006,-1000.0,0.00012543,2]
[380038385,1755497441017,-1739.23962514,0.00012575,2]
[380038386,1755497441027,-150.0,0.00012587,2]
[380038387,1755497441036,-813.4948892,0.00012588,2]
[380038388,1755497441045,-1260.11953426,0.00012588,2]
[380038389,1755497441056,-1036.80721173,0.00012588,2]
[380038390,1755497441066,-1483.43185678,0.00012589,2]
[380038391,1755497441076,-1706.74417931,0.00012589,2]
[380038392,1755497441085,-1930.05650184,0.00012589,2]
[380038393,1755497441094,-2153.36882437,0.00012589,2]
[380038394,1755497441103,-1000.0,0.00012589,2]
[380038395,1755497441113,-2599.99346942,0.0001259,2]
[380038396,1755497441123,-2376.68114689,0.0001259,2]
[380038397,1755497441134,-1000.0,0.0001259,2]
[380038398,1755497441145,-311.1,0.00012591,2]
[380038399,1755497441155,-160.0,0.00012591,2]
[380038400,1755497441165,-257.91778498,0.00012591,2]
[380038401,1755497441175,-150.0,0.00012597,5]
[380038402,1755497441184,-1739.23962514,0.00012603,2]
[380038403,1755497441193,-2000.0,0.00012616,2]
[380038404,1755497441203,-500.0,0.00012616,2]
[380038405,1755497441212,-1958.81343577,0.00012616,2]
[380038406,1755497441221,-1506.03200363,0.00012616,2]
[380038407,1755497441231,-200.7024043,0.00012616,2]
[380038408,1755497441239,-1033.613245,0.00012616,2]
[380038409,1755497441249,-863.41055019,0.00012616,2]
[380038410,1755497441258,-696.41301255,0.00012616,2]
[380038411,1755497441267,-2000.0,0.00012616,2]
[380038412,1755497441278,-2000.0,0.00012616,2]
[380038413,1755497441287,-1000.0,0.00012626,2]
[380038414,1755497441296,-150.0,0.00012632,2]
[380038415,1755497441305,-5058.61541251,0.00012637,2]
[380038416,1755497441315,-151.0,0.00012637,2]
[380038417,1755497441324,-1739.23962514,0.00012658,2]
[380038418,1755497441334,-152.0,0.00012677,5]
[380038419,1755497441343,-21000.93,0.000127,2]
[380038420,1755497441353,-1000.0,0.000127,2]
[380038421,1755497441362,-1739.23962514,0.00012712,2]
[380038422,1755497441372,-1000.0,0.00012724,2]
[380038423,1755497441383,-1700.0,0.00012724,2]
[380038424,1755497441396,-2500.0,0.00012724,2]
[380038425,1755497441405,-150.0,0.00012731,2]
[380038426,1755497441414,-1739.23962514,0.00012767,2]
[380038427,1755497441424,-2631.14977795,0.0001278,2]
[380038428,1755497441434,-500.0,0.00012781,2]
[380038429,1755497441443,-500.0,0.00012781,2]
[380038430,1755497441453,-526.0,0.00012781,2]
[380038431,1755497441463,-1739.23962514,0.00012822,2]
[380038432,1755497441473,-150.0,0.00012829,2]
[380038433,1755497441483,-158.73,0.00012846,2]
[380038434,1755497441492,-156.67,0.00012846,2]
[380038435,1755497441502,-155.64884187,0.00012866,2]
[380038436,1755497441512,-151.0,0.00012866,2]
[380038437,1755497441521,-1739.23962514,0.00012877,2]
[380038438,1755497441531,-150.0,0.00012884,2]
[380038439,1755497441541,-152.0,0.00012899,6]
[380038440,1755497441551,-1000.0,0.000129,2]
[380038441,1755497441561,-1739.23962514,0.00012904,2]
[380038442,1755497441572,-200.0,0.00012905,2]
[380038443,1755497441582,-150.0,0.00012927,2]
[380038444,1755497441592,-150.0,0.00012937,2]
[380038445,1755497441601,-1739.23962514,0.00012959,2]
[380038446,1755497441611,-150.0,0.00012986,2]
[380038447,1755497441621,-213.37313578,0.0001299,2]
[380038448,1755497441631,-472.68698398,0.00013,2]
[380038449,1755497441640,-681.0899,0.00013,2]
[380038450,1755497441649,-23838.17,0.00013007,6]
[380038451,1755497441658,-150.0,0.00013009,2]
[380038452,1755497441668,-1739.23962514,0.00013014,2]
[380038453,1755497441677,-150.0,0.00013042,2]
[380038454,1755497441686,-150.0,0.00013049,2]
[380038455,1755497441695,-286.65044683,0.00013056,2]
[380038456,1755497441704,-1739.23962514,0.00013068,2]
[380038457,1755497441714,-150.0,0.00013075,2]
[380038458,1755497441723,-150.0,0.0001308,2]
[380038459,1755497441733,-1000.0,0.0001309,2]
[380038460,1755497441742,-433.0,0.0001309,2]
[380038461,1755497441751,-150.0,0.00013092,2]
[380038462,1755497441761,-1000.0,0.00013093,2]
[380038463,1755497441771,-1000.0,0.000131,2]
[380038464,1755497441783,-152.0,0.0001312,7]
[380038465,1755497441792,-1739.23962514,0.00013123,2]
[380038466,1755497441801,-156.65,0.00013143,2]
[380038467,1755497441810,-150.0,0.00013163,2]
[380038468,1755497441819,-438.37625615,0.00013164,2]
[380038469,1755497441828,-1541.4358324,0.00013164,2]
[380038470,1755497441837,-2500.0,0.00013164,2]
[380038471,1755497441847,-150.0,0.00013167,2]
[380038472,1755497441857,-155.97,0.00013168,2]
[380038473,1755497441866,-843.11923542,0.00013174,8]
[380038474,1755497441876,-150.0,0.00013176,2]
[380038475,1755497441886,-150.0,0.00013179,2]
[380038476,1755497441895,-18135.44,0.00013184,6]
[380038477,1755497441905,-151.0,0.00013185,2]
[380038478,1755497441915,-2351.0,0.00013188,2]
[380038479,1755497441924,-150.0,0.00013198,2]
[380038480,1755497441934,-150.0,0.000132,2]
[380038481,1755497441943,-150.0,0.00013212,2]
[380038482,1755497441953,-150.0,0.00013238,2]
[380038483,1755497441962,-150.0,0.00013246,2]
[380038484,1755497441972,-150.0,0.00013247,2]
[380038485,1755497441981,-150.0,0.0001325,2]
[380038486,1755497441991,-158.73,0.00013269,2]
[380038487,1755497442003,-156.67,0.00013269,2]
[380038488,1755497442012,-150.0,0.0001327,2]
[380038489,1755497442022,-150.0,0.00013278,2]
[380038490,1755497442033,-1000.0,0.00013289,2]
[380038491,1755497442042,-200.0,0.00013293,2]
[380038492,1755497442052,-1000.0,0.000133,2]
[380038493,1755497442062,-1047.81838246,0.00013313,2]
[380038494,1755497442071,-150.0,0.00013324,2]
[380038495,1755497442081,-456.46403188,0.00013327,2]
[380038496,1755497442091,-200.0,0.00013332,2]
[380038497,1755497442100,-200.0,0.00013332,2]
[380038498,1755497442110,-200.0,0.00013332,2]
[380038499,1755497442120,-500.0,0.00013333,2]
[380038500,1755497442130,-200.0,0.00013333,2]
[380038501,1755497442140,-200.0,0.00013333,2]
[380038502,1755497442150,-200.0,0.00013333,2]
[380038503,1755497442159,-152.0,0.00013341,8]
[380038504,1755497442171,-24913.43175592,0.00013368,2]
[380038505,1755497442181,-1000.0,0.00013371,2]
[380038506,1755497442190,-150.0,0.00013373,2]
[380038507,1755497442201,-1000.0,0.00013373,2]
[380038508,1755497442215,-1000.0,0.00013373,2]
[380038509,1755497442225,-1000.0,0.00013373,2]
[380038510,1755497442236,-1000.0,0.00013373,2]
[380038511,1755497442246,-1000.0,0.00013373,2]
[380038512,1755497442262,-1000.0,0.00013373,2]
[380038513,1755497442274,-1000.0,0.00013373,2]
[380038514,1755497442284,-1000.0,0.00013373,2]
[380038515,1755497442293,-1000.0,0.00013373,2]
[380038516,1755497442302,-1000.0,0.00013373,2]
[380038517,1755497442312,-1000.0,0.00013373,2]
[380038518,1755497442322,-1000.0,0.00013373,2]
[380038519,1755497442341,-1000.0,0.00013373,2]
[380038520,1755497442355,-1000.0,0.00013373,2]
[380038521,1755497442367,-1000.0,0.00013373,2]
[380038522,1755497442376,-1000.0,0.00013373,2]
[380038523,1755497442391,-1000.0,0.00013373,2]
[380038524,1755497442400,-1000.0,0.00013373,2]
[380038525,1755497442410,-1000.0,0.00013373,2]
[380038526,1755497442420,-1000.0,0.00013373,2]
[380038527,1755497442430,-1000.0,0.00013373,2]
[380038528,1755497442439,-1000.0,0.00013373,2]
[380038529,1755497442449,-1000.0,0.00013373,2]
[380038530,1755497442459,-1000.0,0.00013373,2]
[380038531,1755497442469,-1000.0,0.00013373,2]
[380038532,1755497442479,-1000.0,0.00013373,2]
[380038533,1755497442489,-1000.0,0.00013373,2]
[380038534,1755497442499,-1000.0,0.00013373,2]
[380038535,1755497442509,-1000.0,0.00013373,2]
[380038536,1755497442519,-1000.0,0.00013373,2]
[380038537,1755497442528,-1000.0,0.00013373,2]
[380038538,1755497442538,-1000.0,0.00013373,2]
[380038539,1755497442548,-1000.0,0.00013373,2]
[380038540,1755497442558,-1000.0,0.00013373,2]
[380038541,1755497442567,-1000.0,0.00013373,2]
[380038542,1755497442577,-1000.0,0.00013373,2]
[380038543,1755497442587,-1000.0,0.00013373,2]
[380038544,1755497442596,-1000.0,0.00013373,2]
[380038545,1755497442608,-1000.0,0.00013373,2]
[380038546,1755497442620,-1000.0,0.00013373,2]
[380038547,1755497442631,-1000.0,0.00013373,2]
[380038548,1755497442640,-1000.0,0.00013373,2]
[380038549,1755497442651,-1000.0,0.00013373,2]
[380038550,1755497442663,-1000.0,0.00013373,2]
[380038551,1755497442674,-1000.0,0.00013373,2]
[380038552,1755497442684,-1000.0,0.00013373,2]
[380038554,1755497443105,-1000.0,0.00013373,2]
[380038555,1755497443146,-1000.0,0.00013373,2]
[380038556,1755497443164,-1000.0,0.00013373,2]
[380038557,1755497443174,-1000.0,0.00013373,2]
[380038558,1755497443183,-1000.0,0.00013373,2]
[380038559,1755497443193,-1000.0,0.00013373,2]
[380038560,1755497443203,-1000.0,0.00013373,2]
[380038561,1755497443212,-1000.0,0.00013373,2]
[380038562,1755497443222,-1000.0,0.00013373,2]
[380038563,1755497443233,-1000.0,0.00013373,2]
[380038564,1755497443243,-1000.0,0.00013373,2]
[380038565,1755497443252,-1000.0,0.00013373,2]
[380038566,1755497443261,-1000.0,0.00013373,2]
[380038567,1755497443271,-1000.0,0.00013373,2]
[380038568,1755497443283,-1000.0,0.00013373,2]
[380038569,1755497443292,-1000.0,0.00013373,2]
[380038570,1755497443301,-1000.0,0.00013373,2]
[380038571,1755497443311,-1000.0,0.00013373,2]
[380038572,1755497443320,-1000.0,0.00013373,2]
[380038573,1755497443330,-1000.0,0.00013373,2]
[380038574,1755497443340,-1000.0,0.00013373,2]
[380038575,1755497443349,-1000.0,0.00013373,2]
[380038576,1755497443358,-1000.0,0.00013373,2]
[380038577,1755497443368,-1000.0,0.00013373,2]
[380038578,1755497443378,-1000.0,0.00013373,2]
[380038579,1755497443390,-1000.0,0.00013373,2]
[380038580,1755497443400,-1000.0,0.00013373,2]
[380038581,1755497443409,-1000.0,0.00013373,2]
[380038582,1755497443419,-1000.0,0.00013373,2]
[380038583,1755497443430,-1000.0,0.00013373,2]
[380038584,1755497443440,-1000.0,0.00013373,2]
[380038585,1755497443449,-1000.0,0.00013373,2]
[380038587,1755497443460,-1000.0,0.00013373,2]
[380038589,1755497443470,-1000.0,0.00013373,2]
[380038592,1755497443479,-1000.0,0.00013373,2]
[380038594,1755497443490,-1000.0,0.00013373,2]
[380038596,1755497443499,-1000.0,0.00013373,2]
[380038598,1755497443509,-1000.0,0.00013373,2]
[380038600,1755497443518,-1000.0,0.00013373,2]
[380038602,1755497443528,-1000.0,0.00013373,2]
[380038604,1755497443538,-1000.0,0.00013373,2]
[380038606,1755497443547,-1000.0,0.00013373,2]
[380038607,1755497443557,-1000.0,0.00013373,2]
[380038610,1755497443567,-1000.0,0.00013373,2]
[380038612,1755497443576,-1000.0,0.00013373,2]
[380038614,1755497443585,-1000.0,0.00013373,2]
[380038616,1755497443595,-1000.0,0.00013373,2]
[380038618,1755497443604,-1000.0,0.00013373,2]
[380038620,1755497443614,-1000.0,0.00013373,2]
[380038622,1755497443624,-1000.0,0.00013373,2]
[380038624,1755497443633,-1000.0,0.00013373,2]
[380038626,1755497443642,-1000.0,0.00013373,2]
[380038628,1755497443652,-1000.0,0.00013373,2]
[380038630,1755497443661,-1000.0,0.00013373,2]
[380038632,1755497443671,-150.0,0.00013389,2]
[380038634,1755497443680,-3474.81279725,0.00013394,2]
[380038636,1755497443690,-224.83466604,0.00013395,2]
[380038638,1755497443699,-142486.79266202,0.00013396,2]
[380038640,1755497443709,-34438.16450928,0.00013398,2]
[380038642,1755497443719,-34438.16450928,0.00013399,2]
[380038644,1755497443728,-3474.81279725,0.000134,2]
[380038646,1755497443738,-192.76369065,0.000134,2]
[380038648,1755497443747,-150.0,0.00013402,2]
[380038650,1755497443757,-150.0,0.00013403,2]
[380038652,1755497443767,-8476.12032382,0.00013403,2]
[380038654,1755497443776,-3474.81279725,0.00013404,2]